[Event "*** Titled Tuesday Blitz"]
[Site "Chess.com"]
[Date "2020.05.05"]
[Round "9"]
[White "Kimster98"]
[Black "Semen16"]
[Result "1/2-1/2"]
[WhiteElo "2523"]
[BlackElo "2347"]
[TimeControl "180+1"]
[EndTime "11:46:41 PDT"]
[Termination "Game drawn by repetition"]

1. d4 {[%clk 0:03:00.9]} 1... d5 {[%clk 0:02:59.2]} 2. Bf4 {[%clk 0:03:00.1]}
2... Nf6 {[%clk 0:02:58.5]} 3. e3 {[%clk 0:03:00.9]} 3... c5 {[%clk 0:02:58.2]}
4. c3 {[%clk 0:03:00.9]} 4... Nc6 {[%clk 0:02:58.3]} 5. Nd2 {[%clk 0:03:01.4]}
5... Bf5 {[%clk 0:02:58.2]} 6. Ngf3 {[%clk 0:02:58.8]} 6... e6 {[%clk 0:02:55]}
7. Qb3 {[%clk 0:02:54.6]} 7... Qb6 {[%clk 0:02:51.4]} 8. Qxb6 {[%clk 0:02:44.5]}
8... axb6 {[%clk 0:02:52.3]} 9. Bb5 {[%clk 0:02:45.1]} 9... Nd7 {[%clk
0:02:46.5]} 10. Ne5 {[%clk 0:02:30.1]} 10... Ndxe5 {[%clk 0:02:43.1]} 11. Bxe5
{[%clk 0:02:31]} 11... Kd7 {[%clk 0:02:38.6]} 12. f3 {[%clk 0:02:18.4]} 12...
Bg6 {[%clk 0:02:32.2]} 13. Kf2 {[%clk 0:02:11.6]} 13... f6 {[%clk 0:02:30.2]}
14. Bg3 {[%clk 0:02:08.8]} 14... Bd6 {[%clk 0:02:30.3]} 15. Bxd6 {[%clk
0:02:08.1]} 15... Kxd6 {[%clk 0:02:31.2]} 16. a4 {[%clk 0:02:01.3]} 16... e5
{[%clk 0:02:21.2]} 17. dxc5+ {[%clk 0:01:50.9]} 17... bxc5 {[%clk 0:02:18.7]}
18. e4 {[%clk 0:01:44.5]} 18... dxe4 {[%clk 0:02:08.2]} 19. Nxe4+ {[%clk
0:01:43.6]} 19... Bxe4 {[%clk 0:02:06.6]} 20. fxe4 {[%clk 0:01:44.5]} 20... Rhd8
{[%clk 0:02:04.7]} 21. Rhd1+ {[%clk 0:01:41.1]} 21... Kc7 {[%clk 0:02:03.4]} 22.
Ke2 {[%clk 0:01:31.9]} 22... Ne7 {[%clk 0:01:53.6]} 23. Rxd8 {[%clk 0:01:24.3]}
23... Rxd8 {[%clk 0:01:53]} 24. Rd1 {[%clk 0:01:25.2]} 24... Rxd1 {[%clk
0:01:52.6]} 25. Kxd1 {[%clk 0:01:26.1]} 25... Nc8 {[%clk 0:01:48.8]} 26. b4
{[%clk 0:01:23.6]} 26... Nd6 {[%clk 0:01:41.9]} 27. Bd3 {[%clk 0:01:23.1]} 27...
Kb6 {[%clk 0:01:34.2]} 28. Ke2 {[%clk 0:01:20.8]} 28... Kc6 {[%clk 0:01:32.1]}
29. Ke3 {[%clk 0:01:20.1]} 29... b6 {[%clk 0:01:30.8]} 30. Kf3 {[%clk
0:01:14.1]} 30... g6 {[%clk 0:01:26.4]} 31. g4 {[%clk 0:01:11.9]} 31... g5
{[%clk 0:01:24.9]} 32. Ke3 {[%clk 0:01:11.3]} 32... h6 {[%clk 0:01:22.1]} 33.
Kd2 {[%clk 0:01:10.1]} 33... Kc7 {[%clk 0:01:10.1]} 34. Ke3 {[%clk 0:01:09.9]}
34... Kc6 {[%clk 0:01:10.3]} 35. Kd2 {[%clk 0:01:10.4]} 35... Kc7 {[%clk
0:01:05.7]} 36. Kc1 {[%clk 0:01:10.9]} 36... Kc6 {[%clk 0:01:05.8]} 37. Kb2
{[%clk 0:01:10.3]} 37... Kc7 {[%clk 0:01:04.6]} 38. Ka3 {[%clk 0:01:07]} 38...
Kc6 {[%clk 0:01:04.9]} 39. Ka2 {[%clk 0:01:06.8]} 39... Kc7 {[%clk 0:01:05]} 40.
Kb2 {[%clk 0:01:06.2]} 40... Kc6 {[%clk 0:01:04.9]} 41. Ka3 {[%clk 0:01:06.6]}
41... Kc7 {[%clk 0:01:00.3]} 42. h3 {[%clk 0:01:06.3]} 42... Kc6 {[%clk
0:01:00.2]} 43. Kb2 {[%clk 0:01:05.6]} 43... Kc7 {[%clk 0:00:57.7]} 44. Ka3
{[%clk 0:01:05.6]} 44... Kc6 {[%clk 0:00:58]} 45. Kb2 {[%clk 0:01:06.1]} 45...
Kc7 {[%clk 0:00:58.2]} 46. Ka2 {[%clk 0:01:06.7]} 46... Kb7 {[%clk 0:00:56]} 47.
Ka3 {[%clk 0:01:06.5]} 47... Kc6 {[%clk 0:00:56.2]} 1/2-1/2

[Event "*** Titled Tuesday Blitz"]
[Site "Chess.com"]
[Date "2020.05.05"]
[Round "9"]
[White "Loiacono_Antonio"]
[Black "Hasangatin_Ramil"]
[Result "1-0"]
[WhiteElo "2380"]
[BlackElo "2505"]
[TimeControl "180+1"]
[EndTime "11:46:41 PDT"]
[Termination "Loiacono_Antonio won on time"]

1. e4 {[%clk 0:03:00.9]} 1... d5 {[%clk 0:02:59.8]} 2. exd5 {[%clk 0:02:59.7]}
2... Qxd5 {[%clk 0:03:00.7]} 3. Nc3 {[%clk 0:02:59.7]} 3... Qd6 {[%clk
0:03:01.1]} 4. d4 {[%clk 0:02:59.7]} 4... Nf6 {[%clk 0:03:01.3]} 5. Nge2 {[%clk
0:02:59.8]} 5... c6 {[%clk 0:03:01.2]} 6. Bf4 {[%clk 0:02:59.8]} 6... Qd8 {[%clk
0:03:01.6]} 7. Qd2 {[%clk 0:02:57.6]} 7... Bf5 {[%clk 0:03:01.6]} 8. f3 {[%clk
0:02:57.8]} 8... e6 {[%clk 0:03:00.7]} 9. O-O-O {[%clk 0:02:57.8]} 9... Nbd7
{[%clk 0:02:51.6]} 10. g4 {[%clk 0:02:56.6]} 10... Bg6 {[%clk 0:02:51.7]} 11. h4
{[%clk 0:02:56.7]} 11... h5 {[%clk 0:02:51.8]} 12. Bg3 {[%clk 0:02:45.2]} 12...
hxg4 {[%clk 0:02:46.4]} 13. Nf4 {[%clk 0:02:45.3]} 13... Bf5 {[%clk 0:02:45.2]}
14. Bc4 {[%clk 0:02:40.4]} 14... gxf3 {[%clk 0:02:40.4]} 15. Rhe1 {[%clk
0:02:37.2]} 15... Be7 {[%clk 0:02:37.5]} 16. Bxe6 {[%clk 0:02:25]} 16... fxe6
{[%clk 0:02:34.8]} 17. Nxe6 {[%clk 0:02:25]} 17... Bxe6 {[%clk 0:02:31.8]} 18.
Rxe6 {[%clk 0:02:25.9]} 18... Nf8 {[%clk 0:02:16.2]} 19. Re3 {[%clk 0:02:14.7]}
19... Ng6 {[%clk 0:01:55.1]} 20. Rde1 {[%clk 0:02:13.2]} 20... O-O {[%clk
0:01:24.4]} 21. Qd3 {[%clk 0:02:11.6]} 21... f2 {[%clk 0:01:01.8]} 22. Bxf2
{[%clk 0:02:05.6]} 22... Nf4 {[%clk 0:01:01.1]} 23. Qc4+ {[%clk 0:02:01.9]}
23... N6d5 {[%clk 0:00:31.6]} 24. Rxe7 {[%clk 0:02:00.5]} 24... b5 {[%clk
0:00:30.2]} 25. Qb3 {[%clk 0:01:49]} 25... Ng2 {[%clk 0:00:15.3]} 26. Nxd5
{[%clk 0:01:42.6]} 26... Qxd5 {[%clk 0:00:05.6]} 27. Qg3 {[%clk 0:01:38.6]}
27... Rf7 {[%clk 0:00:05]} 28. Rxf7 {[%clk 0:01:27.5]} 28... Kxf7 {[%clk
0:00:05.9]} 29. Rg1 {[%clk 0:01:27.5]} 1-0

[Event "*** Titled Tuesday Blitz"]
[Site "Chess.com"]
[Date "2020.05.05"]
[Round "9"]
[White "The_Machine04"]
[Black "silverback96"]
[Result "1-0"]
[WhiteElo "2305"]
[BlackElo "2130"]
[TimeControl "180+1"]
[EndTime "11:46:46 PDT"]
[Termination "The_Machine04 won by checkmate"]

1. d4 {[%clk 0:03:00.9]} 1... Nf6 {[%clk 0:02:59.4]} 2. Bg5 {[%clk 0:02:59.1]}
2... e6 {[%clk 0:02:58.8]} 3. Nd2 {[%clk 0:02:57.3]} 3... d5 {[%clk 0:02:56.5]}
4. e3 {[%clk 0:02:49.8]} 4... c5 {[%clk 0:02:53.9]} 5. c3 {[%clk 0:02:48.5]}
5... Bd6 {[%clk 0:02:54]} 6. f4 {[%clk 0:02:45]} 6... O-O {[%clk 0:02:52.5]} 7.
Bd3 {[%clk 0:02:44.6]} 7... Be7 {[%clk 0:02:42.2]} 8. Ngf3 {[%clk 0:02:40]} 8...
b6 {[%clk 0:02:42.7]} 9. Qe2 {[%clk 0:02:37]} 9... a5 {[%clk 0:02:42.3]} 10. Bc2
{[%clk 0:02:27.8]} 10... a4 {[%clk 0:02:36]} 11. a3 {[%clk 0:02:26.5]} 11... Ba6
{[%clk 0:02:18.4]} 12. Qf2 {[%clk 0:02:25.9]} 12... Bb5 {[%clk 0:02:13.6]} 13.
Bxf6 {[%clk 0:02:11.8]} 13... Bxf6 {[%clk 0:02:14.5]} 14. Ne5 {[%clk 0:02:10.7]}
14... Nd7 {[%clk 0:02:10.1]} 15. h4 {[%clk 0:02:07.8]} 15... Be7 {[%clk
0:01:53.1]} 16. Qf3 {[%clk 0:01:59.3]} 16... Re8 {[%clk 0:01:16.6]} 17. Bxh7+
{[%clk 0:00:45.7]} 17... Kxh7 {[%clk 0:01:13]} 18. Qh5+ {[%clk 0:00:45.8]} 18...
Kg8 {[%clk 0:01:10.2]} 19. Qxf7+ {[%clk 0:00:46.7]} 19... Kh7 {[%clk 0:01:10.4]}
20. Ndf3 {[%clk 0:00:25.2]} 20... Nxe5 {[%clk 0:00:45.6]} 21. Ng5+ {[%clk
0:00:20.2]} 21... Kh8 {[%clk 0:00:44.4]} 22. Qh5+ {[%clk 0:00:17.3]} 22... Kg8
{[%clk 0:00:45.3]} 23. Qh7+ {[%clk 0:00:17.5]} 23... Kf8 {[%clk 0:00:46.2]} 24.
Qh8# {[%clk 0:00:18.2]} 1-0

[Event "*** Titled Tuesday Blitz"]
[Site "Chess.com"]
[Date "2020.05.05"]
[Round "9"]
[White "PawnEatingZombie"]
[Black "powermove"]
[Result "1-0"]
[WhiteElo "2149"]
[BlackElo "1678"]
[TimeControl "180+1"]
[EndTime "11:46:50 PDT"]
[Termination "PawnEatingZombie won by resignation"]

1. d4 {[%clk 0:03:00.9]} 1... Nf6 {[%clk 0:02:56.4]} 2. c4 {[%clk 0:03:00.8]}
2... c5 {[%clk 0:02:55.6]} 3. d5 {[%clk 0:03:00]} 3... b5 {[%clk 0:02:53.1]} 4.
cxb5 {[%clk 0:03:00.9]} 4... a6 {[%clk 0:02:51.4]} 5. e3 {[%clk 0:03:01.8]} 5...
g6 {[%clk 0:02:47.2]} 6. Nc3 {[%clk 0:03:01.1]} 6... Bg7 {[%clk 0:02:46.3]} 7.
a4 {[%clk 0:03:01.6]} 7... O-O {[%clk 0:02:44.8]} 8. Nf3 {[%clk 0:03:02.1]} 8...
d6 {[%clk 0:02:43.5]} 9. Ra3 {[%clk 0:03:00.8]} 9... Bb7 {[%clk 0:02:41.6]} 10.
e4 {[%clk 0:03:00.7]} 10... Nbd7 {[%clk 0:02:33.4]} 11. h3 {[%clk 0:03:00.2]}
11... axb5 {[%clk 0:02:23.2]} 12. Bxb5 {[%clk 0:02:58.8]} 12... Qc7 {[%clk
0:02:14.8]} 13. Qe2 {[%clk 0:02:48.6]} 13... e6 {[%clk 0:02:13.6]} 14. dxe6
{[%clk 0:02:40]} 14... fxe6 {[%clk 0:02:12.2]} 15. O-O {[%clk 0:02:32.9]} 15...
Nh5 {[%clk 0:01:44.8]} 16. Bc4 {[%clk 0:02:19.8]} 16... Rae8 {[%clk 0:01:32.3]}
17. Ng5 {[%clk 0:02:15.3]} 17... Rf6 {[%clk 0:01:16.2]} 18. g4 {[%clk
0:01:37.1]} 18... h6 {[%clk 0:00:55.6]} 19. Nxe6 {[%clk 0:01:24.1]} 19... Rfxe6
{[%clk 0:00:53.4]} 20. gxh5 {[%clk 0:01:19.7]} 20... Kh8 {[%clk 0:00:48.8]} 21.
Bxe6 {[%clk 0:01:18.3]} 21... Rxe6 {[%clk 0:00:45.1]} 22. Qg4 {[%clk 0:00:57.6]}
22... Re5 {[%clk 0:00:41.8]} 23. f4 {[%clk 0:00:50.5]} 23... Rxh5 {[%clk
0:00:40.8]} 24. Qxg6 {[%clk 0:00:45.4]} 24... Rxh3 {[%clk 0:00:38.5]} 25. Nb5
{[%clk 0:00:37.7]} 25... Qd8 {[%clk 0:00:29.9]} 26. Rxh3 {[%clk 0:00:36.6]} 1-0

[Event "*** Titled Tuesday Blitz"]
[Site "Chess.com"]
[Date "2020.05.05"]
[Round "9"]
[White "hongnhung1234"]
[Black "SlavenPastar"]
[Result "0-1"]
[WhiteElo "2220"]
[BlackElo "2362"]
[TimeControl "180+1"]
[EndTime "11:46:52 PDT"]
[Termination "SlavenPastar won by checkmate"]

1. e4 {[%clk 0:03:00.9]} 1... b6 {[%clk 0:03:00]} 2. d4 {[%clk 0:03:00.5]} 2...
Bb7 {[%clk 0:03:00.6]} 3. Bd3 {[%clk 0:03:01.1]} 3... Nf6 {[%clk 0:03:00.1]} 4.
Qe2 {[%clk 0:03:01.3]} 4... e6 {[%clk 0:02:59.5]} 5. f4 {[%clk 0:03:01.1]} 5...
d5 {[%clk 0:02:59.3]} 6. e5 {[%clk 0:03:01.1]} 6... Ne4 {[%clk 0:02:59.8]} 7.
Nf3 {[%clk 0:03:00.3]} 7... c5 {[%clk 0:02:56.8]} 8. c3 {[%clk 0:02:59.5]} 8...
a5 {[%clk 0:02:56.4]} 9. O-O {[%clk 0:02:55.2]} 9... Be7 {[%clk 0:02:53.6]} 10.
Be3 {[%clk 0:02:47]} 10... Nc6 {[%clk 0:02:52.1]} 11. Nbd2 {[%clk 0:02:42.5]}
11... cxd4 {[%clk 0:02:51.2]} 12. cxd4 {[%clk 0:02:41.8]} 12... Nxd2 {[%clk
0:02:48]} 13. Bxd2 {[%clk 0:02:38]} 13... Nb4 {[%clk 0:02:36.2]} 14. Bb5+ {[%clk
0:02:33.6]} 14... Kf8 {[%clk 0:02:36]} 15. f5 {[%clk 0:02:27.2]} 15... exf5
{[%clk 0:02:35.7]} 16. a3 {[%clk 0:02:15.2]} 16... Nc6 {[%clk 0:02:28.1]} 17.
Bd3 {[%clk 0:02:09.5]} 17... Qd7 {[%clk 0:02:23.5]} 18. b4 {[%clk 0:01:49.5]}
18... h6 {[%clk 0:02:11.3]} 19. b5 {[%clk 0:01:44.1]} 19... Nd8 {[%clk
0:02:10.8]} 20. Ne1 {[%clk 0:01:38.8]} 20... g6 {[%clk 0:02:09.4]} 21. g4 {[%clk
0:01:31.9]} 21... Ne6 {[%clk 0:02:00]} 22. Nc2 {[%clk 0:01:16.9]} 22... f4
{[%clk 0:01:47.2]} 23. Bxf4 {[%clk 0:01:11.5]} 23... Kg7 {[%clk 0:01:44.9]} 24.
Be3 {[%clk 0:01:06.7]} 24... Rac8 {[%clk 0:01:44.3]} 25. Qf2 {[%clk 0:00:58.7]}
25... Bg5 {[%clk 0:01:26.6]} 26. Bxg5 {[%clk 0:00:51.9]} 26... hxg5 {[%clk
0:01:24.8]} 27. Qf6+ {[%clk 0:00:51]} 27... Kg8 {[%clk 0:01:24.1]} 28. Rad1
{[%clk 0:00:34.5]} 28... Nf4 {[%clk 0:01:17.7]} 29. Rf3 {[%clk 0:00:19.9]} 29...
Qxg4+ {[%clk 0:01:13.9]} 30. Rg3 {[%clk 0:00:18.7]} 30... Qxd1+ {[%clk
0:01:13.7]} 31. Bf1 {[%clk 0:00:18.2]} 31... Qxc2 {[%clk 0:01:06.1]} 32. Rxg5
{[%clk 0:00:16.2]} 32... Qxh2# {[%clk 0:01:05.8]} 0-1

[Event "*** Titled Tuesday Blitz"]
[Site "Chess.com"]
[Date "2020.05.05"]
[Round "9"]
[White "heartofatiger"]
[Black "putra48"]
[Result "1/2-1/2"]
[WhiteElo "2462"]
[BlackElo "2622"]
[TimeControl "180+1"]
[EndTime "11:46:53 PDT"]
[Termination "Game drawn by agreement"]

1. d4 {[%clk 0:02:46.4]} 1... d5 {[%clk 0:02:59.9]} 2. c4 {[%clk 0:02:46.1]}
2... e6 {[%clk 0:03:00.3]} 3. Nf3 {[%clk 0:02:46.4]} 3... Nf6 {[%clk 0:03:00.5]}
4. g3 {[%clk 0:02:47]} 4... Be7 {[%clk 0:03:00.3]} 5. Bg2 {[%clk 0:02:47.6]}
5... O-O {[%clk 0:03:01.2]} 6. O-O {[%clk 0:02:47.9]} 6... dxc4 {[%clk
0:03:02.1]} 7. Qc2 {[%clk 0:02:48.2]} 7... a6 {[%clk 0:03:02.3]} 8. a4 {[%clk
0:02:48.8]} 8... Bd7 {[%clk 0:03:01.8]} 9. Qxc4 {[%clk 0:02:49.4]} 9... Bc6
{[%clk 0:03:02.2]} 10. Bg5 {[%clk 0:02:50]} 10... Bd5 {[%clk 0:03:02.1]} 11. Qc1
{[%clk 0:02:48.7]} 11... Nc6 {[%clk 0:02:57.5]} 12. Rd1 {[%clk 0:02:48.4]} 12...
h6 {[%clk 0:02:56.4]} 13. Bxf6 {[%clk 0:02:47.7]} 13... Bxf6 {[%clk 0:02:56.5]}
14. e3 {[%clk 0:02:42.5]} 14... Na5 {[%clk 0:02:56]} 15. Nbd2 {[%clk 0:02:38]}
15... Rc8 {[%clk 0:02:36.4]} 16. b4 {[%clk 0:02:27.3]} 16... Nb3 {[%clk
0:02:34.8]} 17. Nxb3 {[%clk 0:02:27.1]} 17... Bxb3 {[%clk 0:02:35.7]} 18. Re1
{[%clk 0:02:22.5]} 18... a5 {[%clk 0:02:17.4]} 19. Qc3 {[%clk 0:02:13.9]} 19...
Bd5 {[%clk 0:02:17.2]} 20. e4 {[%clk 0:02:06.5]} 20... axb4 {[%clk 0:02:16.8]}
21. Qxb4 {[%clk 0:02:06.8]} 21... Bc6 {[%clk 0:02:17]} 22. a5 {[%clk 0:01:48.6]}
22... Ra8 {[%clk 0:02:13.9]} 23. Rad1 {[%clk 0:01:29.1]} 23... Re8 {[%clk
0:02:12.5]} 24. h4 {[%clk 0:01:21.3]} 24... Qb8 {[%clk 0:02:09.1]} 25. d5 {[%clk
0:01:20.8]} 25... exd5 {[%clk 0:02:08.8]} 26. exd5 {[%clk 0:01:19.8]} 26...
Rxe1+ {[%clk 0:02:04.4]} 27. Nxe1 {[%clk 0:01:20]} 27... Bd7 {[%clk 0:02:04.2]}
28. d6 {[%clk 0:01:17.3]} 28... cxd6 {[%clk 0:01:59.3]} 29. Qxd6 {[%clk
0:01:15.4]} 29... Qxd6 {[%clk 0:01:51.9]} 30. Rxd6 {[%clk 0:01:15.1]} 30... Be6
{[%clk 0:01:47.1]} 31. Bxb7 {[%clk 0:00:59.4]} 31... Rxa5 {[%clk 0:01:47]} 32.
Kg2 {[%clk 0:00:53.6]} 32... g5 {[%clk 0:01:44.6]} 33. hxg5 {[%clk 0:00:53]}
33... hxg5 {[%clk 0:01:45.5]} 34. Be4 {[%clk 0:00:50.2]} 34... Re5 {[%clk
0:01:40.8]} 35. f3 {[%clk 0:00:49.6]} 35... Ra5 {[%clk 0:01:40.7]} 36. Rd2
{[%clk 0:00:47.9]} 36... Bc3 {[%clk 0:01:40.5]} 37. Re2 {[%clk 0:00:47.7]} 37...
Ra1 {[%clk 0:01:40.1]} 38. Nc2 {[%clk 0:00:45.6]} 38... Rc1 {[%clk 0:01:40.3]}
39. Ne3 {[%clk 0:00:44.5]} 39... Kg7 {[%clk 0:01:32.4]} 40. f4 {[%clk 0:00:43]}
40... Kf6 {[%clk 0:01:26.5]} 41. Nd5+ {[%clk 0:00:40]} 41... Bxd5 {[%clk
0:01:24.5]} 42. Bxd5 {[%clk 0:00:40.1]} 42... gxf4 {[%clk 0:01:22.9]} 43. gxf4
{[%clk 0:00:39.2]} 1/2-1/2

[Event "*** Titled Tuesday Blitz"]
[Site "Chess.com"]
[Date "2020.05.05"]
[Round "9"]
[White "mirciulica14"]
[Black "Aureliano-Buendia"]
[Result "0-1"]
[WhiteElo "2590"]
[BlackElo "2418"]
[TimeControl "180+1"]
[EndTime "11:46:55 PDT"]
[Termination "Aureliano-Buendia won by resignation"]

1. d4 {[%clk 0:03:00.9]} 1... d5 {[%clk 0:02:58.5]} 2. c4 {[%clk 0:03:01.6]}
2... c6 {[%clk 0:02:59.2]} 3. Nf3 {[%clk 0:03:02.1]} 3... Nf6 {[%clk 0:02:59.3]}
4. Nc3 {[%clk 0:03:02.9]} 4... dxc4 {[%clk 0:02:59.7]} 5. a4 {[%clk 0:03:03.6]}
5... e6 {[%clk 0:03:00.1]} 6. e3 {[%clk 0:02:59.1]} 6... c5 {[%clk 0:03:00.5]}
7. Bxc4 {[%clk 0:02:58.3]} 7... Nc6 {[%clk 0:03:01.3]} 8. d5 {[%clk 0:02:45.4]}
8... exd5 {[%clk 0:03:00.2]} 9. Nxd5 {[%clk 0:02:46.3]} 9... Be7 {[%clk
0:02:57.6]} 10. O-O {[%clk 0:02:40.6]} 10... O-O {[%clk 0:02:57]} 11. Nxe7+
{[%clk 0:02:40.6]} 11... Qxe7 {[%clk 0:02:56.5]} 12. h3 {[%clk 0:02:34.7]} 12...
Be6 {[%clk 0:02:56]} 13. Qe2 {[%clk 0:02:30.2]} 13... Ne4 {[%clk 0:02:53.9]} 14.
Bb5 {[%clk 0:01:54.6]} 14... Nb4 {[%clk 0:02:50.7]} 15. Nd2 {[%clk 0:01:50.4]}
15... Nd6 {[%clk 0:02:45.8]} 16. b3 {[%clk 0:01:23]} 16... Rfd8 {[%clk
0:02:38.6]} 17. Bd3 {[%clk 0:01:04.5]} 17... Nxd3 {[%clk 0:02:20.5]} 18. Qxd3
{[%clk 0:01:05.4]} 18... Nc4 {[%clk 0:02:19.6]} 19. Qxc4 {[%clk 0:00:46]} 19...
Bxc4 {[%clk 0:02:18.5]} 20. Nxc4 {[%clk 0:00:46.9]} 20... Rd3 {[%clk 0:02:18.5]}
21. Rb1 {[%clk 0:00:44]} 21... b6 {[%clk 0:02:16.5]} 22. f3 {[%clk 0:00:22.7]}
22... Rad8 {[%clk 0:02:15.5]} 23. e4 {[%clk 0:00:23.2]} 23... Qe6 {[%clk
0:02:15.2]} 24. Bg5 {[%clk 0:00:18]} 24... f6 {[%clk 0:02:14.3]} 25. Bf4 {[%clk
0:00:18]} 25... R8d7 {[%clk 0:02:00.4]} 26. Rfc1 {[%clk 0:00:14.1]} 26... a6
{[%clk 0:01:57.9]} 27. Kh2 {[%clk 0:00:07.1]} 27... h6 {[%clk 0:01:57.1]} 28.
Bg3 {[%clk 0:00:06]} 28... b5 {[%clk 0:01:56.4]} 29. axb5 {[%clk 0:00:06]} 29...
axb5 {[%clk 0:01:57.3]} 30. Na5 {[%clk 0:00:06.8]} 30... Qb6 {[%clk 0:01:47.3]}
31. b4 {[%clk 0:00:01.8]} 31... cxb4 {[%clk 0:01:45.1]} 32. Nb3 {[%clk
0:00:02.3]} 32... Rc3 {[%clk 0:01:36.3]} 33. Rd1 {[%clk 0:00:01.8]} 33... Rxd1
{[%clk 0:01:35.9]} 34. Rxd1 {[%clk 0:00:02.7]} 34... Rxb3 {[%clk 0:01:36.2]} 35.
Rd6 {[%clk 0:00:03.6]} 35... Qxd6 {[%clk 0:01:35.1]} 36. Bxd6 {[%clk 0:00:04.5]}
36... Rb1 {[%clk 0:01:35.5]} 37. Kg3 {[%clk 0:00:04.8]} 37... b3 {[%clk
0:01:35.9]} 38. h4 {[%clk 0:00:04.7]} 38... Ra1 {[%clk 0:01:34.4]} 39. Ba3
{[%clk 0:00:05.6]} 39... Rxa3 {[%clk 0:01:34.5]} 40. h5 {[%clk 0:00:05.9]} 0-1

[Event "*** Titled Tuesday Blitz"]
[Site "Chess.com"]
[Date "2020.05.05"]
[Round "9"]
[White "SGchess01"]
[Black "Nikolaj_6"]
[Result "1-0"]
[WhiteElo "2811"]
[BlackElo "2636"]
[TimeControl "180+1"]
[EndTime "11:46:57 PDT"]
[Termination "SGchess01 won by resignation"]

1. e4 {[%clk 0:03:00.9]} 1... c5 {[%clk 0:02:59.6]} 2. Nf3 {[%clk 0:03:00.9]}
2... d6 {[%clk 0:03:00]} 3. d4 {[%clk 0:03:00.9]} 3... cxd4 {[%clk 0:03:00.6]}
4. Nxd4 {[%clk 0:03:01.7]} 4... Nf6 {[%clk 0:03:01.1]} 5. Nc3 {[%clk 0:03:02.3]}
5... a6 {[%clk 0:03:01.4]} 6. Be2 {[%clk 0:03:02.1]} 6... e5 {[%clk 0:03:01]} 7.
Nf3 {[%clk 0:03:02.7]} 7... Qc7 {[%clk 0:03:00.5]} 8. Bg5 {[%clk 0:03:00.6]}
8... Nbd7 {[%clk 0:02:59.1]} 9. a4 {[%clk 0:03:00.4]} 9... Be7 {[%clk
0:02:56.8]} 10. O-O {[%clk 0:02:59.3]} 10... O-O {[%clk 0:02:55.9]} 11. Nd2
{[%clk 0:02:59.5]} 11... h6 {[%clk 0:02:49.3]} 12. Bh4 {[%clk 0:02:57.4]} 12...
g5 {[%clk 0:02:43.2]} 13. Bg3 {[%clk 0:02:56.9]} 13... Nc5 {[%clk 0:02:43.2]}
14. Re1 {[%clk 0:02:47.1]} 14... Be6 {[%clk 0:02:42.6]} 15. a5 {[%clk
0:02:43.1]} 15... Rac8 {[%clk 0:02:38.2]} 16. f3 {[%clk 0:02:24.2]} 16... Rfd8
{[%clk 0:02:36]} 17. Bf1 {[%clk 0:02:06.2]} 17... b5 {[%clk 0:02:20.9]} 18. Nb3
{[%clk 0:01:33.1]} 18... Nxb3 {[%clk 0:02:10.8]} 19. cxb3 {[%clk 0:01:34]} 19...
b4 {[%clk 0:02:10.4]} 20. Nd5 {[%clk 0:01:34]} 20... Bxd5 {[%clk 0:02:09.8]} 21.
exd5 {[%clk 0:01:33.9]} 21... Qc5+ {[%clk 0:01:48.3]} 22. Bf2 {[%clk 0:01:33.4]}
22... Qxd5 {[%clk 0:01:48.4]} 23. Qxd5 {[%clk 0:01:33.4]} 23... Nxd5 {[%clk
0:01:47.8]} 24. Bxa6 {[%clk 0:01:34]} 24... Ra8 {[%clk 0:01:47.4]} 25. Bb7
{[%clk 0:01:33.9]} 25... Nf4 {[%clk 0:01:46]} 26. Bxa8 {[%clk 0:01:28.4]} 26...
Rxa8 {[%clk 0:01:46.9]} 27. Red1 {[%clk 0:01:26.5]} 27... Ra6 {[%clk 0:01:41.9]}
28. Bb6 {[%clk 0:01:24]} 28... f5 {[%clk 0:01:36.3]} 29. g3 {[%clk 0:01:22.6]}
29... Ne6 {[%clk 0:01:35.7]} 30. Rac1 {[%clk 0:01:22.6]} 30... Kf7 {[%clk
0:01:33.6]} 31. Rc8 {[%clk 0:01:21.6]} 31... Nd4 {[%clk 0:01:30.3]} 32. Bxd4
{[%clk 0:01:16]} 32... exd4 {[%clk 0:01:30.5]} 33. Rxd4 {[%clk 0:01:07.1]} 33...
Rxa5 {[%clk 0:01:30.5]} 34. Rxb4 {[%clk 0:01:07.5]} 34... Rd5 {[%clk 0:01:22.9]}
35. Rc2 {[%clk 0:01:06.1]} 35... Rd3 {[%clk 0:01:17.6]} 36. Kg2 {[%clk
0:01:05.6]} 36... d5 {[%clk 0:01:17.1]} 37. Rb7 {[%clk 0:01:05.6]} 37... d4
{[%clk 0:01:09.9]} 38. Re2 {[%clk 0:01:03.5]} 38... Re3 {[%clk 0:01:10]} 39.
Rxe3 {[%clk 0:01:03.9]} 39... dxe3 {[%clk 0:01:09.2]} 40. Kf1 {[%clk 0:01:03.5]}
40... f4 {[%clk 0:01:09]} 41. Ke2 {[%clk 0:01:03.3]} 41... Ke6 {[%clk
0:01:08.9]} 42. b4 {[%clk 0:01:03.7]} 42... Bf6 {[%clk 0:01:06.9]} 43. b3 {[%clk
0:00:59.7]} 43... h5 {[%clk 0:01:02.8]} 44. b5 {[%clk 0:00:56.6]} 44... h4
{[%clk 0:00:54.6]} 45. gxf4 {[%clk 0:00:56.2]} 45... gxf4 {[%clk 0:00:53.6]} 46.
Rh7 {[%clk 0:00:55.6]} 46... Bd4 {[%clk 0:00:53.5]} 47. b6 {[%clk 0:00:53.6]}
1-0